bitfinex/quotes_ETHUSD_20240917
["timestamp","ask_amount","ask_price","bid_price","bid_amount"]
[1726534250460,4.3658,2290.6,2290.2,2.3078]
[1726534251273,4.36579,2290.6,2290.2,2.3078]
[1726534251751,8.73155,2290.6,2290.2,2.3078]
[1726534252193,4.36576,2290.6,2290.2,2.3078]
[1726534252367,8.73152,2290.6,2290.2,2.3078]
[1726534253073,8.73153,2290.6,2290.2,2.3078]
[1726534253872,4.36576,2290.6,2290.2,2.3078]
[1726534254568,8.73153,2290.6,2290.2,2.3078]
[1726534254888,4.36576,2290.6,2290.2,2.3078]
[1726534255693,8.73151,2290.6,2290.2,2.3078]
[1726534255892,4.36575,2290.6,2290.2,2.3078]
[1726534258197,4.36567,2290.6,2290.2,6.67411]
[1726534259857,4.36567,2290.6,2290.3,2.3533]
[1726534260261,8.73145,2290.6,2290.3,2.3533]
[1726534260809,8.73143,2290.6,2290.3,2.3533]
[1726534261098,4.36567,2290.6,2290.3,2.3533]
[1726534261403,8.73147,2290.6,2290.3,2.3533]
[1726534262478,4.36567,2290.6,2290.3,2.3533]
[1726534262678,8.73147,2290.6,2290.3,2.3533]
[1726534263174,4.3654,2290.8,2290.3,6.71946]
[1726534263420,4.3651,2290.9,2290.4,6.64614]
[1726534263584,4.36528,2290.8,2290.4,6.64614]
[1726534263784,8.73066,2290.8,2290.4,2.2801]
[1726534264115,4.36528,2290.8,2290.4,2.2801]
[1726534264704,4.36549,2290.7,2290.4,2.2801]
[1726534264881,4.36528,2290.8,2290.4,2.2801]
[1726534265083,8.73067,2290.8,2290.4,2.2801]
[1726534265279,4.36528,2290.8,2290.4,2.2801]
[1726534265821,4.36549,2290.7,2290.4,2.2801]
[1726534268225,4.36528,2290.8,2290.4,2.2801]
[1726534268530,4.36559,2290.7,2290.4,2.2801]
[1726534271992,4.36567,2290.6,2290.4,2.2801]
[1726534273115,4.36585,2290.5,2290.4,2.2801]
[1726534273434,8.7317,2290.5,2290.4,2.2801]
[1726534273594,4.36641,2290.3,2290.2,2.2666]
[1726534279540,4.36641,2290.3,2290.0,3.40593635]
[1726534279723,4.36641,2290.3,2290.1,3.3188636]
[1726534279898,4.36641,2290.3,2290.0,3.40593635]
[1726534280096,4.36641,2290.3,2290.1,3.31881363]
[1726534280326,4.36641,2290.3,2290.2,3.32051871]
[1726534281193,8.73278,2290.3,2290.2,3.32051871]
[1726534283230,8.73278,2290.3,2290.2,1.32820748]
[1726534283828,8.73278,2290.3,2290.2,3.32140125]
[1726534284133,4.3666,2290.2,2290.0,3.40593635]
[1726534284429,4.3666,2290.2,2290.1,3.32226927]
[1726534286511,4.36637,2290.3,2290.1,3.32226927]
[1726534286718,4.36637,2290.3,2290.2,1.32893548]
[1726534288431,4.36637,2290.3,2290.0,3.40593635]
[1726534288614,4.36637,2290.3,2290.1,3.32222376]
[1726534288815,4.36637,2290.3,2290.2,1.32888907]
[1726534289142,4.36637,2290.3,2290.0,3.40593635]
[1726534289352,4.36637,2290.3,2290.1,3.32216856]
[1726534289548,4.36637,2290.3,2290.2,1.32886742]
[1726534290849,4.36637,2290.3,2290.0,3.40593635]
[1726534291154,4.36637,2290.3,2290.1,3.32197899]
[1726534291451,4.36637,2290.3,2290.2,1.32879148]
[1726534293029,4.36637,2290.3,2290.0,3.40593635]
[1726534293215,4.36637,2290.3,2290.1,3.32179575]
[1726534293410,4.36637,2290.3,2290.0,3.40593635]
[1726534293640,4.36637,2290.3,2290.1,3.32173435]
[1726534293853,4.36637,2290.3,2290.0,3.40593635]
[1726534294036,4.36645,2290.2,2290.1,3.32173443]
[1726534294661,8.73271,2290.3,2290.1,3.32173443]
[1726534294823,8.73271,2290.3,2290.0,3.40593635]
[1726534295030,8.73271,2290.3,2290.1,3.32165642]
[1726534295230,8.73271,2290.3,2290.0,3.40593635]
[1726534295433,4.36633,2290.3,2290.1,3.32161757]
[1726534295621,4.36633,2290.3,2290.2,1.32862541]
[1726534296332,4.36633,2290.3,2290.2,1.32859646]
[1726534297188,4.36633,2290.3,2290.0,3.40593635]
[1726534297315,4.36633,2290.3,2290.1,3.32140592]
[1726534297513,4.36633,2290.3,2290.2,1.32857444]
[1726534298445,4.36633,2290.3,2290.2,3.32139828]
[1726534298669,4.36633,2290.3,2290.2,1.32857444]
[1726534299462,4.36599,2290.5,2290.2,3.32138347]
[1726534299676,4.36599,2290.5,2290.3,5.67275799]
[1726534299837,8.73195,2290.5,2290.3,2.3514]
[1726534300860,4.36604,2290.4,2290.3,2.3514]
[1726534301059,4.36604,2290.4,2290.3,3.67994778]
[1726534301258,4.36604,2290.4,2290.1,2.84047186]
[1726534301259,3.3063,2290.4,2290.1,0.91433635]
[1726534301475,3.3063,2290.4,2289.9,1.37150453]
[1726534301476,11.16634,2290.1,2289.9,0.91433635]
[1726534301640,11.16634,2290.1,2290.0,3.32162948]
[1726534301641,6.79972,2290.1,2290.0,3.32162948]
[1726534302728,7.916338,2290.1,2290.0,3.32162948]
[1726534302929,7.916338,2290.1,2290.0,1.32865179]
[1726534303835,12.282958,2290.1,2290.0,1.32865179]
[1726534304473,4.36687,2290.0,2289.8,0.91433635]
[1726534304665,4.36687,2290.0,2289.9,3.3212095]
[1726534306555,4.36687,2290.0,2289.9,1.3284838]
[1726534306763,8.73374,2290.0,2289.9,1.3284838]
[1726534306960,4.36687,2290.0,2289.7,0.91433635]
[1726534307122,4.36687,2290.0,2289.8,3.3209425]
[1726534307123,4.367,2289.9,2289.8,3.3209425]
[1726534307925,4.367,2289.9,2289.8,3.32062558]
[1726534310038,9.850847,2289.9,2289.8,3.32062558]
[1726534310242,9.850847,2289.9,2289.6,1.37150453]
[1726534310243,8.73476,2289.7,2289.6,0.91433635]
[1726534310464,4.36775,2289.6,2289.4,0.91433635]
[1726534310751,8.73547,2289.6,2289.5,1.32800653]
[1726534310963,8.73547,2289.6,2289.3,3.28523635]
[1726534310964,4.36772,2289.6,2289.3,3.28523635]
[1726534311169,4.36772,2289.6,2289.4,3.32008605]
[1726534311170,4.36786,2289.5,2289.4,3.32008605]
[1726534311550,4.36786,2289.5,2289.4,3.31961842]
[1726534311854,4.36786,2289.5,2289.4,1.32803442]
[1726534312478,4.36786,2289.5,2289.4,1.32772562]
[1726534312780,4.36786,2289.5,2289.2,0.91433635]
[1726534312954,4.36786,2289.5,2289.3,4.23290331]
[1726534313156,4.36786,2289.5,2289.4,1.32742678]
[1726534313363,4.36786,2289.5,2289.3,1.92613551]
[1726534313677,8.73573,2289.5,2289.4,1.32720356]
[1726534313838,8.73573,2289.5,2289.2,0.91433635]
[1726534314037,8.73573,2289.5,2289.3,3.31807016]
[1726534314238,8.73573,2289.5,2289.2,0.91433635]
[1726534314437,8.73573,2289.5,2289.3,1.32724012]
[1726534314696,8.73573,2289.5,2289.1,5.14177186]
[1726534314887,4.36786,2289.5,2289.2,3.31748957]
[1726534315039,4.36786,2289.5,2289.3,1.32699583]
[1726534315244,8.73573,2289.5,2289.1,5.14177186]
[1726534315443,8.73573,2289.5,2289.2,3.31747146]
[1726534315444,4.36786,2289.5,2289.2,3.31747146]
[1726534315686,8.73573,2289.5,2289.3,1.32698858]
[1726534315847,8.73573,2289.5,2289.1,5.14177186]
[1726534316064,4.36786,2289.5,2289.2,3.31698072]
[1726534316301,4.36786,2289.5,2289.3,1.32679229]
[1726534316474,4.36786,2289.5,2289.1,5.14177186]
[1726534316674,4.36786,2289.5,2289.2,3.316621]
[1726534316887,4.36786,2289.5,2289.1,5.14177186]
[1726534317083,4.36786,2289.5,2289.2,3.31662118]
[1726534317290,8.73571,2289.5,2289.1,5.14177186]
[1726534317467,4.36785,2289.5,2289.2,3.31661746]
[1726534317797,4.36785,2289.5,2289.1,5.14177186]
[1726534318002,4.36785,2289.5,2289.2,3.31635433]
[1726534318209,4.36785,2289.5,2289.1,5.14177186]
[1726534318504,4.36785,2289.5,2289.2,3.3163607]
[1726534318709,4.36785,2289.5,2289.1,5.14177186]
[1726534318867,4.36785,2289.5,2289.2,3.31614325]
[1726534319067,4.36785,2289.5,2289.1,5.14177186]
[1726534319278,4.36785,2289.5,2289.2,3.31613072]
[1726534319496,4.36785,2289.5,2289.1,5.14177186]
[1726534319766,4.36785,2289.5,2289.2,3.31595333]
[1726534319913,4.36797,2289.4,2289.1,5.14177186]
[1726534320209,4.36785,2289.5,2289.2,3.31595877]
[1726534320412,8.7358,2289.5,2289.1,5.14177186]
[1726534320620,4.36785,2289.5,2289.2,3.31598295]
[1726534320775,4.36785,2289.5,2289.1,5.14177186]
[1726534320976,8.73572,2289.5,2289.2,3.31597716]
[1726534321178,4.36785,2289.5,2289.1,5.14177186]
[1726534321404,8.73572,2289.5,2289.2,3.31597153]
[1726534321577,4.36785,2289.5,2289.1,5.14177186]
[1726534321782,4.36785,2289.5,2289.2,3.31556483]
[1726534322115,4.36785,2289.5,2289.1,5.14177186]
[1726534322408,4.36785,2289.5,2289.2,3.3155649]
[1726534322715,8.73573,2289.5,2289.1,5.14177186]
[1726534322917,4.36785,2289.5,2289.2,3.31527823]
[1726534323216,8.73571,2289.5,2289.1,5.14177186]
[1726534323418,8.73571,2289.5,2289.2,3.31504742]
[1726534323619,8.73571,2289.5,2289.1,5.14177186]
[1726534323823,8.73571,2289.5,2289.2,3.31503008]
[1726534323992,8.73571,2289.5,2289.1,5.14177186]
[1726534324192,4.36795,2289.4,2289.2,1.32601624]
[1726534324402,4.36795,2289.4,2289.1,4.22743551]
[1726534324611,4.36795,2289.4,2289.2,1.32593582]
[1726534324925,4.36795,2289.4,2289.1,4.22743551]
[1726534325096,4.36795,2289.4,2289.2,1.32593338]
[1726534325297,4.36795,2289.4,2289.1,4.22743551]
[1726534325521,4.36795,2289.4,2289.2,1.32585923]
[1726534325730,4.36795,2289.4,2289.1,4.22743551]
[1726534326024,4.36795,2289.4,2289.2,1.32585944]
[1726534326322,4.36795,2289.4,2289.1,4.22743551]
[1726534326506,4.36795,2289.4,2289.2,1.32581374]
[1726534326710,4.36758,2289.6,2289.3,1.92613551]
[1726534326897,4.36758,2289.6,2289.5,1.92613551]
[1726534327257,4.36776,2289.5,2289.4,2.3654]
[1726534327383,4.36776,2289.5,2289.3,1.92613551]
[1726534327831,8.73533,2289.6,2289.3,1.92613551]
[1726534328127,4.36758,2289.6,2289.3,1.92613551]
[1726534330582,6.64406,2289.8,2289.3,1.92613551]
[1726534330787,11.01136,2289.8,2289.3,6.38160925]
[1726534331048,6.644,2289.8,2289.3,6.38160925]
[1726534331421,4.36738,2289.7,2289.3,6.29425551]
[1726534332146,4.36738,2289.7,2289.3,1.92613551]
[1726534336322,4.36761,2289.6,2289.3,1.92613551]
[1726534338728,4.36761,2289.6,2289.1,0.91433635]
[1726534338729,1.92613551,2289.6,2289.1,0.91433635]
[1726534339063,4.36845,2289.2,2289.0,2.2658]
[1726534339350,4.36845,2289.2,2288.7,6.1978527]
[1726534339351,4.36845,2289.2,2288.8,3.18223635]
[1726534339523,4.36845,2289.2,2288.9,3.31583138]
[1726534339860,4.36845,2289.2,2288.8,5.10837186]
[1726534340043,4.36845,2289.2,2288.9,3.31589771]
[1726534340213,4.36845,2289.2,2288.8,4.19403551]
[1726534340409,4.36845,2289.2,2288.9,3.31553156]
[1726534340614,4.36845,2289.2,2288.8,5.10837186]
[1726534340858,4.36845,2289.2,2288.9,3.31573348]
[1726534341013,4.36845,2289.2,2288.8,5.10837186]
[1726534341215,4.36856,2289.1,2288.9,1.32629792]
[1726534341541,4.36856,2289.1,2288.8,2.2679]
[1726534341745,4.36856,2289.1,2288.9,1.32629048]
[1726534341961,4.36856,2289.1,2288.8,2.2679]
[1726534342130,4.36856,2289.1,2288.9,1.32628916]
[1726534342456,4.36856,2289.1,2288.8,2.2679]
[1726534342629,4.36856,2289.1,2288.9,1.3262933]
[1726534342827,4.36856,2289.1,2288.8,2.2679]
[1726534345559,4.36856,2289.1,2288.9,1.32658439]
[1726534345764,4.36856,2289.1,2288.8,2.2679]
[1726534346066,6.81779,2289.4,2288.9,5.24255389]
[1726534346268,6.81779,2289.4,2288.9,1.92613551]
[1726534346449,6.81779,2289.4,2289.0,1.32685054]
[1726534346640,6.81779,2289.4,2288.9,1.92613551]
[1726534346836,6.81779,2289.4,2289.0,1.32685125]
[1726534347029,4.36819,2289.3,2288.9,1.92613551]
[1726534347225,4.36819,2289.3,2289.0,1.32685256]
[1726534347425,4.36819,2289.3,2288.9,1.92613551]
[1726534347640,4.36836,2289.2,2288.9,1.92613551]
[1726534348046,4.36858,2289.1,2288.8,3.18223635]
[1726534348364,4.36858,2289.1,2288.9,3.31768025]
[1726534348572,4.36858,2289.1,2288.8,2.2679]
[1726534348870,2.3579,2289.0,2288.9,1.32720527]
[1726534349227,2.3579,2289.0,2288.9,1.32719366]
[1726534350131,4.36858,2289.1,2288.9,3.31809889]
[1726534350331,4.36858,2289.1,2288.8,0.91433635]
[1726534350566,4.36858,2289.1,2288.9,3.31845841]
[1726534350876,4.36858,2289.1,2288.8,0.91433635]
[1726534351171,4.36858,2289.1,2288.9,3.31848097]
[1726534351357,4.36858,2289.1,2288.8,0.91433635]
[1726534351530,4.36858,2289.1,2288.9,3.31899005]
[1726534351729,4.36858,2289.1,2288.8,0.91433635]
[1726534351930,4.36858,2289.1,2288.9,3.31899035]
[1726534352141,4.36858,2289.1,2288.8,0.91433635]
[1726534352363,4.36858,2289.1,2288.9,3.3189939]
[1726534352565,4.36858,2289.1,2288.8,0.91433635]
[1726534352729,4.36858,2289.1,2288.9,3.31929848]
[1726534353068,4.36858,2289.1,2288.8,0.91433635]
[1726534353224,4.36858,2289.1,2288.9,3.31930232]
[1726534353425,4.36858,2289.1,2288.8,0.91433635]
[1726534353626,4.36858,2289.1,2288.9,3.31960591]
[1726534353862,4.36858,2289.1,2288.8,0.91433635]
[1726534354062,4.36858,2289.1,2288.9,3.31960552]
[1726534354263,4.36858,2289.1,2288.8,0.91433635]
[1726534354567,4.36858,2289.1,2288.9,3.31947211]
[1726534354734,4.36858,2289.1,2289.0,1.32778884]
[1726534354927,4.36872,2289.0,2288.8,0.91433635]
[1726534355157,4.36872,2289.0,2288.9,3.31998961]
[1726534356131,6.77766,2289.2,2288.9,7.54912512]
[1726534356132,4.36836,2289.2,2288.9,7.54912512]
[1726534356332,4.36823,2289.3,2289.0,3.32025876]
[1726534356568,4.36823,2289.3,2288.9,5.14347186]
[1726534356569,4.36835,2289.2,2288.9,5.14347186]
[1726534356756,4.36835,2289.2,2289.0,3.32050633]
[1726534356937,4.36835,2289.2,2288.9,4.22913551]
[1726534357144,4.36835,2289.2,2289.0,3.32052663]
[1726534357472,4.36835,2289.2,2288.9,5.14347186]
[1726534357765,4.36835,2289.2,2289.0,3.3204258]
[1726534357965,4.36835,2289.2,2288.9,5.14347186]
[1726534358166,4.36835,2289.2,2289.0,3.32042813]
[1726534358482,4.36835,2289.2,2288.9,5.14347186]
[1726534358782,8.73647,2289.3,2289.0,1.32814865]
[1726534358963,4.36834,2289.2,2288.9,5.14347186]
[1726534359273,4.36834,2289.2,2289.0,3.3203799]
[1726534359567,4.36834,2289.2,2288.9,5.14347186]
[1726534359727,4.36834,2289.2,2289.0,3.32038373]
[1726534359927,4.36834,2289.2,2288.9,5.14347186]
[1726534360127,4.36834,2289.2,2289.0,3.3203816]
[1726534360329,4.36834,2289.2,2288.9,5.14347186]
[1726534360567,4.36834,2289.2,2289.0,3.32033998]
[1726534360758,4.36834,2289.2,2288.9,5.14347186]
[1726534360935,4.36834,2289.2,2289.0,3.32034021]
[1726534361135,4.36834,2289.2,2288.9,5.14347186]
[1726534361335,4.36834,2289.2,2289.0,3.3203452]
[1726534361560,4.36834,2289.2,2288.9,2.84047186]
[1726534361762,4.36834,2289.2,2288.8,1.37150453]
[1726534361763,11.0504,2289.1,2289.0,1.32812949]
[1726534361967,4.36929,2288.7,2288.6,0.95290965]
[1726534362231,4.36929,2288.7,2288.6,0.0385733]
[1726534362232,19.295009,2288.7,2288.6,0.0385733]
[1726534363070,14.925719,2288.7,2288.6,0.0385733]
[1726534366336,14.05188,2288.7,2288.6,0.0385733]
[1726534367273,4.36929,2288.7,2288.6,0.0385733]
[1726534370998,8.73858,2288.7,2288.6,0.0385733]
[1726534371198,18.51437,2288.7,2288.6,0.0385733]
[1726534379896,14.14508,2288.7,2288.6,0.0385733]
[1726534382411,4.5204467,2288.9,2288.6,2.2943733]
[1726534382575,4.36866,2289.1,2288.7,1.92613551]
[1726534382772,4.36862,2289.1,2288.7,1.92613551]
[1726534383105,11.83819,2289.3,2288.7,1.92613551]
[1726534383410,2.4498,2289.4,2288.7,1.92613551]
[1726534383907,2.4498,2289.4,2288.6,6.6638533]
[1726534384062,4.36862,2289.1,2288.6,2.2943733]
[1726534384264,4.36885,2289.0,2288.6,2.2943733]
[1726534385199,4.36868,2289.1,2288.6,2.2943733]
[1726534385400,4.36872,2289.0,2288.6,2.2943733]
[1726534388301,4.36901,2288.9,2288.6,2.2943733]
[1726534390669,4.36872,2289.0,2288.6,2.2943733]
[1726534391710,8.73762,2289.0,2288.6,2.2943733]
[1726534392210,4.36872,2289.0,2288.6,2.2943733]
[1726534393513,4.36929,2288.7,2288.6,0.0385733]
[1726534406931,4.36929,2288.7,2288.6,1.36656174]
[1726534407137,16.06984478,2288.7,2288.6,0.0385733]
[1726534407332,22.04611926,2288.7,2288.6,0.0385733]
[1726534407493,22.59611926,2288.7,2288.6,0.0385733]
[1726534407905,20.66715448,2288.7,2288.6,0.0385733]
[1726534408139,20.81858118,2288.7,2288.6,0.0385733]
[1726534409503,20.81858118,2288.7,2288.6,1e-08]
[1726534412832,25.42858118,2288.7,2288.6,1e-08]
[1726534413139,20.81858118,2288.7,2288.6,1e-08]
[1726534415267,25.18787118,2288.7,2288.6,1e-08]
[1726534416623,29.36979346,2288.7,2288.6,1e-08]
[1726534418541,20.26858118,2288.7,2288.6,1e-08]
[1726534420168,20.26858118,2288.7,2288.1,2.29400001]
[1726534420169,4.37024,2288.2,2288.1,2.29400001]
[1726534423280,8.74048,2288.2,2288.1,2.29400001]
[1726534423444,3.0,2288.6,2287.9,2.2934733]
[1726534423445,4.37062,2288.0,2287.9,2.2934733]
[1726534430095,8.74102,2288.1,2287.9,2.2934733]
[1726534436406,8.74105,2288.1,2287.9,2.2934733]
[1726534438108,4.37062,2288.0,2287.9,2.2934733]
[1726534440816,4.37062,2288.0,2287.9,0.0385733]
[1726534440817,8.74124,2288.0,2287.9,0.0385733]
[1726534444901,8.74124,2288.0,2287.9,2.3911733]
[1726534444902,4.37062,2288.0,2287.9,2.3911733]
[1726534447624,8.74124,2288.0,2287.9,0.0385733]
[1726534450732,14.650659,2288.0,2287.9,0.0385733]
[1726534450940,17.068359,2288.0,2287.9,0.0385733]
[1726534453261,24.438979,2288.0,2287.9,0.0385733]
[1726534453432,29.359599,2288.0,2287.9,0.0385733]
[1726534453614,29.85004602,2288.0,2287.9,0.0385733]
[1726534455013,34.46004602,2288.0,2287.9,0.0385733]
[1726534455240,34.46004602,2288.0,2287.2,0.0385733]
[1726534455241,11.74392,2287.3,2287.2,0.0385733]
[1726534455547,23.38804,2287.3,2287.2,0.0385733]
[1726534455710,19.01608,2287.3,2287.2,0.0385733]
[1726534455906,23.20348663,2287.3,2287.2,0.0385733]
[1726534457439,22.65348663,2287.3,2287.2,0.0385733]
[1726534457641,24.91883529,2287.3,2287.2,0.0385733]
[1726534470771,25.46883529,2287.3,2287.2,0.0385733]
[1726534471164,34.36418199,2287.3,2287.2,0.0385733]
[1726534471365,34.36418199,2287.3,2287.2,1e-08]
[1726534471366,34.91529833,2287.3,2287.2,1e-08]
[1726534471575,34.91529833,2287.3,2286.5,0.0385733]
[1726534471576,23.3484,2286.6,2286.5,0.0385733]
[1726534471738,27.68723332,2286.6,2286.5,0.0385733]
[1726534472137,23.49982669,2286.6,2286.5,0.0385733]
[1726534472351,11.89802669,2286.6,2286.5,0.0385733]
[1726534473042,16.27132669,2286.6,2286.5,0.0385733]
[1726534473348,24.61287996,2286.6,2286.5,0.0385733]
[1726534473765,16.05217333,2286.6,2286.5,0.0385733]
[1726534474374,13.79247333,2286.6,2286.5,0.10340013]
[1726534474557,11.7466,2286.6,2286.5,0.10340013]
[1726534474738,20.30730663,2286.6,2286.5,0.10340013]
[1726534474938,20.30730663,2286.6,2286.5,0.0385733]
[1726534475382,16.1199,2286.6,2286.5,0.0385733]
[1726534475769,16.6699,2286.6,2286.5,0.0385733]
[1726534476078,19.01054333,2286.6,2286.5,0.0385733]
[1726534476288,21.41904333,2286.6,2286.5,0.0385733]
[1726534477288,21.57047002,2286.6,2286.5,0.0385733]
[1726534477867,4.37464,2285.9,2285.8,2.3402733]
[1726534479259,8.74928,2285.9,2285.8,0.0385733]
[1726534479981,12.624208,2285.9,2285.8,0.0385733]
[1726534480288,23.78488132,2285.9,2285.8,0.0385733]
[1726534480585,28.70952132,2285.9,2285.8,0.0385733]
[1726534480972,20.14747469,2285.9,2285.8,0.0385733]
[1726534481178,20.14747469,2285.9,2284.5,0.08752936]
[1726534481179,20.14747469,2285.9,2284.5,2.06853638]
[1726534481180,2.4453,2284.6,2284.5,2.06853638]
[1726534481382,5.01474747,2285.8,2284.5,0.0224362]
[1726534481383,8.21981981,2285.3,2284.5,0.0224362]
[1726534481551,4.37666,2284.9,2284.6,2.4028]
[1726534481747,3.0,2285.3,2284.6,2.4028]
[1726534481748,4.37628,2285.1,2284.6,2.4028]
[1726534481962,4.37593,2285.3,2284.7,2.4028]
[1726534482399,4.37598,2285.2,2284.7,2.4028]
[1726534483093,4.37598,2285.2,2284.7,2.4252362]
[1726534483279,4.37568,2285.4,2284.7,0.0224362]
[1726534483479,4.37568,2285.4,2284.8,4.37674]
[1726534483795,4.37568,2285.4,2284.7,0.0224362]
[1726534483796,4.37568,2285.4,2284.7,4.3993462]
[1726534484002,4.37634,2285.1,2284.7,0.0224362]
[1726534484516,4.37675,2284.8,2284.7,0.0224362]
[1726534484658,4.37589,2285.3,2284.7,0.0224362]
[1726534484659,4.37651,2285.0,2284.7,0.0224362]
[1726534485047,4.37675,2284.8,2284.7,0.0224362]
[1726534485500,8.7535,2284.8,2284.7,0.0224362]
[1726534486499,4.37675,2284.8,2284.7,0.0224362]
[1726534486700,4.37675,2284.8,2284.7,0.09019659]
[1726534486854,4.37661,2284.9,2284.7,0.09019659]
[1726534487886,16.13025,2284.8,2284.7,0.09019659]
[1726534488089,22.45830921,2284.8,2284.7,0.09019659]
[1726534488295,26.64571584,2284.8,2284.7,0.0224362]
[1726534488961,16.28167669,2284.8,2284.7,0.0224362]
[1726534490452,20.46908332,2284.8,2284.7,0.0224362]
[1726534490652,21.01908332,2284.8,2284.7,0.0224362]
[1726534493167,27.73843332,2284.8,2284.7,0.0224362]
[1726534493362,28.26937129,2284.8,2284.7,0.0224362]
[1726534493982,33.18754008,2284.8,2284.7,0.0224362]
[1726534494191,33.18754008,2284.8,2284.0,0.0384351]
[1726534494192,13.13427,2284.1,2284.0,0.0384351]
[1726534494510,32.63782129,2284.1,2284.0,0.0384351]
[1726534497721,28.25973129,2284.1,2284.0,0.0384351]
[1726534499232,32.63782129,2284.1,2284.0,0.0384351]
[1726534499403,32.63782129,2284.1,2283.3,0.0384351]
[1726534499404,14.69636,2283.4,2283.3,0.0384351]
[1726534499612,19.07579,2283.4,2283.3,0.0384351]
[1726534500481,23.45522,2283.4,2283.3,0.0384351]
[1726534500689,27.83465,2283.4,2283.3,0.0384351]
[1726534500881,31.08994946,2283.4,2283.3,0.0384351]
[1726534501691,26.71051946,2283.4,2283.3,0.0384351]
[1726534502076,8.75886,2283.4,2283.3,0.0384351]
[1726534503054,7.53034669,2283.7,2283.3,0.0384351]
[1726534503055,4.37917,2283.6,2283.3,0.10469239]
[1726534503283,4.37917,2283.6,2283.4,2.4515]
[1726534503601,4.37877,2283.8,2283.5,0.05978047]
[1726534503765,4.37782,2284.3,2283.8,2.4515]
[1726534503986,4.37754,2284.4,2284.0,4.18740663]
[1726534504182,4.37679,2284.8,2284.1,2.4419]
[1726534504366,4.37696,2284.7,2284.1,6.88420405]
[1726534504566,4.37648,2285.0,2284.3,2.4419]
[1726534504811,4.37701,2284.7,2284.4,0.06326911]
[1726534505375,4.37729,2284.6,2284.4,0.06326911]
[1726534505690,8.75457,2284.6,2284.4,0.06326911]
[1726534506010,4.37725,2284.6,2284.4,0.06326911]
[1726534506322,4.37732,2284.5,2284.4,0.06326911]
[1726534506477,4.37725,2284.6,2284.4,0.06326911]
[1726534506684,4.37677,2284.8,2284.4,0.06326911]
[1726534507198,4.37706,2284.7,2284.4,0.06326911]
[1726534507997,4.37706,2284.7,2284.3,2.4419]
[1726534509501,4.37677,2284.8,2284.3,2.4419]
[1726534510008,4.37646,2285.0,2284.4,4.3775]
[1726534510221,4.37569,2285.4,2284.6,2.2776]
[1726534510372,0.0384351,2286.1,2285.2,4.37598]
[1726534510373,4.37495,2285.8,2285.2,4.37598]
[1726534510717,4.37495,2285.8,2285.0,2.2776]
[1726534510718,4.37495,2285.8,2285.3,2.2776]
[1726534511015,4.37503,2285.7,2285.3,2.2776]
[1726534511187,4.812445,2285.8,2285.3,2.2776]
[1726534511386,4.37495,2285.8,2285.3,2.2776]
[1726534511588,0.0384351,2286.1,2285.6,2.2908]
[1726534511974,4.37496,2285.8,2285.6,2.2908]
[1726534512174,4.37496,2285.8,2285.1,9.53916922]
[1726534512175,4.4126951,2286.1,2285.4,4.37544]
[1726534512401,4.37462,2286.0,2285.4,8.75118]
[1726534512717,4.37462,2286.0,2285.5,2.416]
[1726534512915,4.37469,2285.9,2285.5,2.416]
[1726534513988,0.0384351,2286.1,2285.6,4.37519]
[1726534514190,0.0384351,2286.1,2285.6,4.37509]
[1726534514431,0.0384351,2286.1,2285.7,2.3639]
[1726534514580,0.0384351,2286.1,2285.7,6.73877]
[1726534514920,0.0384351,2286.1,2285.8,4.37481]
[1726534515130,0.0384351,2286.1,2285.9,2.4522]
[1726534515711,4.37445,2286.0,2285.3,2.367]
[1726534516021,0.44128851,2286.0,2285.3,2.367]
[1726534516204,4.37524,2285.6,2285.3,2.367]
[1726534518779,0.44128851,2286.0,2285.3,2.367]
[1726534519013,4.37539,2285.6,2285.3,2.367]
[1726534519917,4.37496,2285.8,2285.3,2.367]
[1726534520290,4.37496,2285.8,2285.3,6.74273]
[1726534520924,4.37457,2286.0,2285.4,6.83219]
[1726534521083,4.3747,2285.9,2285.4,6.83219]
[1726534521282,7.83528491,2286.0,2285.4,6.83208]
[1726534521821,4.37488,2285.8,2285.4,2.4566]
[1726534522123,0.0384351,2286.1,2285.4,2.4566]
[1726534522124,4.37522,2285.6,2285.4,2.4566]
[1726534522918,8.7506,2285.6,2285.4,2.4566]
[1726534523131,4.37522,2285.6,2285.4,2.4566]
[1726534523281,8.75062,2285.6,2285.4,2.4566]
[1726534523705,4.37541,2285.5,2285.4,2.4566]
[1726534524581,4.37522,2285.6,2285.4,2.4566]
[1726534525129,4.37541,2285.5,2285.4,2.4566]
[1726534525695,4.37541,2285.5,2285.1,2.4503]
[1726534526302,4.3757,2285.4,2285.1,2.4503]
[1726534526526,4.37593,2285.3,2285.1,2.4503]
[1726534526714,4.37598,2285.2,2285.1,2.4503]
[1726534526941,4.37593,2285.3,2284.8,2.4503]
[1726534526942,4.37641,2285.0,2284.8,2.4503]
[1726534527308,8.75296,2285.0,2284.8,2.4503]
[1726534527514,4.37677,2284.8,2284.5,2.4503]
[1726534527749,4.37703,2284.7,2284.5,2.4503]
[1726534527970,4.37739,2284.5,2283.8,2.4503]
[1726534528115,4.37781,2284.3,2283.8,2.4503]
[1726534528314,4.37781,2284.3,2283.8,2.54588357]
[1726534528539,4.37784,2284.3,2283.8,2.54588357]
[1726534529459,4.37777,2284.3,2283.8,2.54588357]
[1726534529972,8.75561,2284.3,2283.8,2.54588357]
[1726534530318,3.0,2284.7,2283.8,2.54588357]
[1726534530319,4.3774,2284.5,2283.8,2.54588357]
[1726534530518,4.37754,2284.4,2283.8,2.54588357]
[1726534531619,3.0,2284.7,2283.8,2.54588357]
[1726534531849,4.37783,2284.3,2283.8,2.54588357]
[1726534532240,2.2782,2284.4,2283.8,0.09558357]
[1726534532439,4.37821,2284.1,2283.8,0.09558357]
[1726534532667,4.37821,2284.1,2283.5,4.37922]
[1726534532917,8.75564,2284.3,2283.9,2.3402]
[1726534533118,4.3778,2284.3,2283.9,2.3402]
[1726534533326,4.37809,2284.1,2284.0,0.07165241]
[1726534533632,9.631769,2284.1,2284.0,0.07165241]
[1726534533834,4.37869,2283.8,2283.3,2.3786351]
[1726534534265,4.37869,2283.8,2283.4,0.06528285]
[1726534534865,4.37924,2283.5,2283.4,0.06528285]